[Event "Live Chess"]
[Site "Chess.com"]
[Date "2023.05.21"]
[Round "-"]
[White "ExIsambard"]
[Black "raminguy"]
[Result "0-1"]
[WhiteElo "1928"]
[BlackElo "1960"]
[TimeControl "300"]
[EndTime "1:16:03 PDT"]
[Termination "raminguy won by resignation"]

1. d4 {[%clk 0:04:57.8]} 1... d5 {[%clk 0:04:58.8]} 2. Bg5 {[%clk 0:04:56.7]}
2... h6 {[%clk 0:04:57.4]} 3. Bf4 {[%clk 0:04:55.7]} 3... Nf6 {[%clk 0:04:56.7]}
4. e3 {[%clk 0:04:55.1]} 4... e6 {[%clk 0:04:56.3]} 5. Bd3 {[%clk 0:04:54.5]}
5... Bd6 {[%clk 0:04:55.9]} 6. Bg3 {[%clk 0:04:52.5]} 6... O-O {[%clk
0:04:53.4]} 7. Nf3 {[%clk 0:04:51.6]} 7... c5 {[%clk 0:04:52]} 8. c3 {[%clk
0:04:50.9]} 8... cxd4 {[%clk 0:04:50.9]} 9. exd4 {[%clk 0:04:50.1]} 9... Nc6
{[%clk 0:04:50.7]} 10. Nbd2 {[%clk 0:04:49]} 10... Re8 {[%clk 0:04:49.9]} 11.
Qe2 {[%clk 0:04:48.4]} 11... e5 {[%clk 0:04:17.6]} 12. dxe5 {[%clk 0:04:46.2]}
12... Nxe5 {[%clk 0:04:16.4]} 13. Nxe5 {[%clk 0:04:41.5]} 13... Bxe5 {[%clk
0:04:15.6]} 14. Bxe5 {[%clk 0:04:40.3]} 14... Nd7 {[%clk 0:04:14.8]} 15. O-O-O
{[%clk 0:04:20.9]} 15... Nxe5 {[%clk 0:04:11.9]} 16. Bc2 {[%clk 0:04:17.9]}
16... Bg4 {[%clk 0:04:07.5]} 17. Nf3 {[%clk 0:04:08.1]} 17... Nxf3 {[%clk
0:04:05.4]} 18. Qd3 {[%clk 0:04:07.4]} 18... Ng5 {[%clk 0:02:58.7]} 19. f3
{[%clk 0:04:00.9]} 19... Be6 {[%clk 0:02:11.7]} 20. h4 {[%clk 0:03:58.6]} 20...
g6 {[%clk 0:02:01]} 21. hxg5 {[%clk 0:03:57.1]} 21... Qxg5+ {[%clk 0:02:00.4]}
22. Kb1 {[%clk 0:03:48.5]} 22... Bf5 {[%clk 0:01:59.7]} 23. Qd2 {[%clk
0:03:32.7]} 23... Qxd2 {[%clk 0:01:56.4]} 24. Rxd2 {[%clk 0:03:31.9]} 24...
Bxc2+ {[%clk 0:01:55.2]} 25. Rxc2 {[%clk 0:03:31.8]} 25... Kg7 {[%clk
0:01:53.9]} 26. Rd2 {[%clk 0:03:28.7]} 26... Rad8 {[%clk 0:01:51.3]} 27. Kc2
{[%clk 0:03:22.5]} 27... Re7 {[%clk 0:01:44.5]} 28. Rhd1 {[%clk 0:03:19]} 28...
Red7 {[%clk 0:01:42.9]} 29. Rd4 {[%clk 0:03:12.3]} 29... h5 {[%clk 0:01:41.6]}
30. c4 {[%clk 0:03:10.7]} 30... f5 {[%clk 0:01:40.3]} 31. Rxd5 {[%clk
0:02:46.7]} 31... Rxd5 {[%clk 0:01:38.6]} 32. Rxd5 {[%clk 0:02:46]} 32... Rxd5
{[%clk 0:01:37.8]} 33. cxd5 {[%clk 0:02:45.3]} 33... Kf6 {[%clk 0:01:37.3]} 34.
Kd3 {[%clk 0:02:44.8]} 34... h4 {[%clk 0:01:36.4]} 35. Kd4 {[%clk 0:02:39.9]}
35... g5 {[%clk 0:01:34.5]} 36. d6 {[%clk 0:02:33.3]} 36... Ke6 {[%clk
0:01:33.2]} 37. d7 {[%clk 0:02:32.4]} 37... Kxd7 {[%clk 0:01:32.1]} 38. Ke5
{[%clk 0:02:32.3]} 38... g4 {[%clk 0:01:30.7]} 39. fxg4 {[%clk 0:02:28.4]} 39...
fxg4 {[%clk 0:01:29.5]} 40. Kf4 {[%clk 0:02:27.9]} 40... h3 {[%clk 0:01:28.7]}
41. gxh3 {[%clk 0:02:26.9]} 41... gxh3 {[%clk 0:01:27.4]} 42. Kg3 {[%clk
0:02:26.8]} 42... Kd6 {[%clk 0:01:16]} 43. Kxh3 {[%clk 0:02:26.1]} 43... Kd5
{[%clk 0:01:15.6]} 44. Kg3 {[%clk 0:02:24.6]} 44... Kd4 {[%clk 0:01:14.9]} 45.
Kf3 {[%clk 0:02:23.7]} 45... Kd3 {[%clk 0:01:14.4]} 46. Kf4 {[%clk 0:02:21.9]}
46... Kc2 {[%clk 0:01:13.6]} 47. Ke5 {[%clk 0:02:21.8]} 47... Kxb2 {[%clk
0:01:13.1]} 48. a4 {[%clk 0:02:21.2]} 48... Kb3 {[%clk 0:01:11.9]} 49. Kd6
{[%clk 0:02:21.1]} 49... Kxa4 {[%clk 0:01:10.5]} 50. Kc7 {[%clk 0:02:21]} 50...
b5 {[%clk 0:01:09.9]} 51. Kb7 {[%clk 0:02:20]} 51... b4 {[%clk 0:01:09.3]} 0-1

[Event "Live Chess"]
[Site "Chess.com"]
[Date "2023.05.21"]
[Round "-"]
[White "Long1968"]
[Black "OleksiyJr1"]
[Result "0-1"]
[WhiteElo "992"]
[BlackElo "990"]
[TimeControl "300"]
[EndTime "1:16:06 PDT"]
[Termination "OleksiyJr1 won on time"]

1. e4 {[%clk 0:04:56.1]} 1... c5 {[%clk 0:04:55.2]} 2. c3 {[%clk 0:04:53.6]}
2... Nc6 {[%clk 0:04:54.2]} 3. d4 {[%clk 0:04:51.1]} 3... cxd4 {[%clk
0:04:52.5]} 4. cxd4 {[%clk 0:04:48.5]} 4... d6 {[%clk 0:04:52.4]} 5. Nc3 {[%clk
0:04:44.3]} 5... e5 {[%clk 0:04:50.8]} 6. dxe5 {[%clk 0:04:31.4]} 6... Nxe5
{[%clk 0:04:46.2]} 7. f4 {[%clk 0:04:18.8]} 7... Nc6 {[%clk 0:04:33.7]} 8. Nf3
{[%clk 0:04:13.5]} 8... Be6 {[%clk 0:04:31.3]} 9. Be2 {[%clk 0:04:06.8]} 9...
Nb4 {[%clk 0:04:25]} 10. b3 {[%clk 0:03:54.3]} 10... d5 {[%clk 0:04:13.5]} 11.
Be3 {[%clk 0:03:35.4]} 11... dxe4 {[%clk 0:03:54.2]} 12. Ng5 {[%clk 0:03:27.4]}
12... Qxd1+ {[%clk 0:03:52.4]} 13. Rxd1 {[%clk 0:03:07.5]} 13... Bf5 {[%clk
0:03:48.1]} 14. Bb5+ {[%clk 0:02:59.1]} 14... Nc6 {[%clk 0:03:42.1]} 15. Nd5
{[%clk 0:02:36.7]} 15... Bd6 {[%clk 0:03:35.5]} 16. Rc1 {[%clk 0:02:04.2]} 16...
Rc8 {[%clk 0:03:05.7]} 17. Bxa7 {[%clk 0:01:42.4]} 17... Ne7 {[%clk 0:02:51.8]}
18. Nxe7 {[%clk 0:01:07.2]} 18... Bxe7 {[%clk 0:02:51.7]} 19. h3 {[%clk
0:00:34.7]} 19... O-O {[%clk 0:02:48.3]} 20. g4 {[%clk 0:00:29.5]} 20... Bxg5
{[%clk 0:02:43.7]} 21. fxg5 {[%clk 0:00:21.6]} 21... Bd7 {[%clk 0:02:39.1]} 22.
Bc5 {[%clk 0:00:12.2]} 22... Rfe8 {[%clk 0:02:37.4]} 23. O-O {[%clk 0:00:05.9]}
23... e3 {[%clk 0:02:34.8]} 0-1

[Event "Live Chess"]
[Site "Chess.com"]
[Date "2023.05.21"]
[Round "-"]
[White "profpirate4"]
[Black "YrrriKharkiv"]
[Result "0-1"]
[WhiteElo "1267"]
[BlackElo "2078"]
[TimeControl "300"]
[EndTime "1:16:21 PDT"]
[Termination "YrrriKharkiv won by resignation"]

1. e4 {[%clk 0:04:55.9]} 1... Nf6 {[%clk 0:04:59.4]} 2. Nc3 {[%clk 0:04:51.7]}
2... d5 {[%clk 0:04:57.8]} 3. e5 {[%clk 0:04:50.7]} 3... Nfd7 {[%clk 0:04:55.7]}
4. d4 {[%clk 0:04:49.3]} 4... c5 {[%clk 0:04:53.3]} 5. Nf3 {[%clk 0:04:45.3]}
5... cxd4 {[%clk 0:04:49.6]} 6. Nxd4 {[%clk 0:04:44.2]} 6... Nxe5 {[%clk
0:04:45.8]} 7. Bf4 {[%clk 0:04:38.8]} 7... Nbc6 {[%clk 0:04:43.7]} 8. Bb5 {[%clk
0:04:32.9]} 8... Bd7 {[%clk 0:04:34.7]} 9. Bxc6 {[%clk 0:04:30.1]} 9... Nxc6
{[%clk 0:04:32.6]} 10. Nxc6 {[%clk 0:04:26.5]} 10... bxc6 {[%clk 0:04:31]} 11.
O-O {[%clk 0:04:25.4]} 11... e6 {[%clk 0:04:22.2]} 12. Bg3 {[%clk 0:04:22.6]}
12... Be7 {[%clk 0:04:19.1]} 13. Ne2 {[%clk 0:04:17.3]} 13... O-O {[%clk
0:04:16.2]} 14. Qd4 {[%clk 0:04:13.6]} 14... Bf6 {[%clk 0:04:08.6]} 15. Qb4
{[%clk 0:04:10.3]} 15... a5 {[%clk 0:04:04.6]} 16. Qa3 {[%clk 0:04:08.1]} 16...
Qb6 {[%clk 0:03:56]} 17. c3 {[%clk 0:04:04.4]} 17... c5 {[%clk 0:03:45.4]} 18.
b3 {[%clk 0:03:54.5]} 18... Bb5 {[%clk 0:03:35.4]} 19. Rfe1 {[%clk 0:03:46.4]}
19... Bxe2 {[%clk 0:03:33.5]} 20. Rxe2 {[%clk 0:03:45.1]} 20... Bxc3 {[%clk
0:03:32.4]} 21. Rc1 {[%clk 0:03:34.4]} 21... Bd4 {[%clk 0:03:29.6]} 22. Rec2
{[%clk 0:03:29.7]} 22... a4 {[%clk 0:03:16.6]} 23. Bd6 {[%clk 0:03:18.5]} 23...
Qxd6 {[%clk 0:03:14]} 24. Rxc5 {[%clk 0:03:13.8]} 24... Bxc5 {[%clk 0:03:10.7]}
25. Rxc5 {[%clk 0:03:12.5]} 25... axb3 {[%clk 0:03:07.6]} 26. Qxb3 {[%clk
0:03:10.4]} 26... Qxc5 {[%clk 0:03:06.1]} 0-1

[Event "Live Chess"]
[Site "Chess.com"]
[Date "2023.05.21"]
[Round "-"]
[White "Mugzwang"]
[Black "LiamClery2020"]
[Result "1/2-1/2"]
[WhiteElo "1563"]
[BlackElo "2019"]
[TimeControl "300"]
[EndTime "1:16:25 PDT"]
[Termination "Game drawn by repetition"]

1. Nf3 {[%clk 0:04:57.7]} 1... Nf6 {[%clk 0:04:59.9]} 2. d4 {[%clk 0:04:54.6]}
2... e6 {[%clk 0:04:55.4]} 3. g3 {[%clk 0:04:52.2]} 3... c5 {[%clk 0:04:53.7]}
4. Bg2 {[%clk 0:04:40.5]} 4... cxd4 {[%clk 0:04:50]} 5. Nxd4 {[%clk 0:04:39]}
5... Be7 {[%clk 0:04:48.1]} 6. O-O {[%clk 0:04:37.8]} 6... O-O {[%clk
0:04:47.1]} 7. c4 {[%clk 0:04:31.7]} 7... Nc6 {[%clk 0:04:46.1]} 8. Nc3 {[%clk
0:04:19.9]} 8... Qb6 {[%clk 0:04:38.7]} 9. Nxc6 {[%clk 0:04:12.5]} 9... bxc6
{[%clk 0:04:37]} 10. b3 {[%clk 0:04:05.5]} 10... d5 {[%clk 0:04:32.7]} 11. cxd5
{[%clk 0:03:56.3]} 11... cxd5 {[%clk 0:04:30.4]} 12. Bb2 {[%clk 0:03:37.3]}
12... Ba6 {[%clk 0:04:28.4]} 13. Re1 {[%clk 0:03:29.1]} 13... Rac8 {[%clk
0:04:21.2]} 14. e3 {[%clk 0:03:17.9]} 14... Bb4 {[%clk 0:04:14.7]} 15. Rc1
{[%clk 0:03:13.5]} 15... Rfd8 {[%clk 0:04:07.5]} 16. Bf1 {[%clk 0:03:08.5]}
16... Bxf1 {[%clk 0:04:04.4]} 17. Rxf1 {[%clk 0:03:07.3]} 17... Bc5 {[%clk
0:03:49.8]} 18. Na4 {[%clk 0:03:02.1]} 18... Qb5 {[%clk 0:03:47.3]} 19. Rxc5
{[%clk 0:02:45.2]} 19... Rxc5 {[%clk 0:03:44.8]} 20. Nxc5 {[%clk 0:02:44.6]}
20... Qxc5 {[%clk 0:03:44.6]} 21. Bxf6 {[%clk 0:02:42.6]} 21... gxf6 {[%clk
0:03:44.5]} 22. Qg4+ {[%clk 0:02:33.2]} 22... Kf8 {[%clk 0:03:42.4]} 23. Qf4
{[%clk 0:02:27.3]} 23... d4 {[%clk 0:03:40.6]} 24. Qxf6 {[%clk 0:02:11.7]} 24...
Qd5 {[%clk 0:03:32.5]} 25. exd4 {[%clk 0:02:05.4]} 25... Qxd4 {[%clk 0:03:31.3]}
26. Qh6+ {[%clk 0:01:54.6]} 26... Qg7 {[%clk 0:03:29.3]} 27. Qxg7+ {[%clk
0:01:53]} 27... Kxg7 {[%clk 0:03:27.5]} 28. f4 {[%clk 0:01:47.2]} 28... Rd2
{[%clk 0:03:26.7]} 29. Rf2 {[%clk 0:01:46.6]} 29... Rd1+ {[%clk 0:03:25.5]} 30.
Kg2 {[%clk 0:01:45.4]} 30... Kf6 {[%clk 0:03:24.7]} 31. Kf3 {[%clk 0:01:43.7]}
31... h5 {[%clk 0:03:20.8]} 32. Ke3 {[%clk 0:01:41.6]} 32... Kf5 {[%clk
0:03:16.9]} 33. Rd2 {[%clk 0:01:40.3]} 33... Re1+ {[%clk 0:03:12.9]} 34. Re2
{[%clk 0:01:39.1]} 34... Rd1 {[%clk 0:03:11.7]} 35. Rd2 {[%clk 0:01:38.3]} 35...
Re1+ {[%clk 0:03:10.8]} 36. Re2 {[%clk 0:01:37.5]} 36... Rd1 {[%clk 0:03:10.2]}
37. Rd2 {[%clk 0:01:36.8]} 1/2-1/2

[Event "Live Chess"]
[Site "Chess.com"]
[Date "2023.05.21"]
[Round "-"]
[White "Missedidea"]
[Black "Biranidun"]
[Result "0-1"]
[WhiteElo "1835"]
[BlackElo "2542"]
[TimeControl "300"]
[EndTime "1:16:26 PDT"]
[Termination "Biranidun won by checkmate"]

1. d4 {[%clk 0:04:58.8]} 1... Nf6 {[%clk 0:04:58.9]} 2. c4 {[%clk 0:04:57.1]}
2... g6 {[%clk 0:04:58.5]} 3. Nc3 {[%clk 0:04:55.2]} 3... Bg7 {[%clk 0:04:58.1]}
4. e4 {[%clk 0:04:52.6]} 4... d6 {[%clk 0:04:57.5]} 5. Nf3 {[%clk 0:04:50.4]}
5... O-O {[%clk 0:04:56.8]} 6. Be2 {[%clk 0:04:49.5]} 6... e5 {[%clk 0:04:56.5]}
7. O-O {[%clk 0:04:46.4]} 7... Nc6 {[%clk 0:04:55.5]} 8. d5 {[%clk 0:04:44.8]}
8... Ne7 {[%clk 0:04:54.8]} 9. Ne1 {[%clk 0:04:42.3]} 9... Nd7 {[%clk
0:04:53.7]} 10. Nd3 {[%clk 0:04:40.2]} 10... f5 {[%clk 0:04:52.5]} 11. Bd2
{[%clk 0:04:34.8]} 11... Nf6 {[%clk 0:04:51.7]} 12. f3 {[%clk 0:04:33]} 12... f4
{[%clk 0:04:51.1]} 13. c5 {[%clk 0:04:27.6]} 13... g5 {[%clk 0:04:50.3]} 14. Rc1
{[%clk 0:04:23.3]} 14... Ng6 {[%clk 0:04:49.1]} 15. cxd6 {[%clk 0:04:19.9]}
15... cxd6 {[%clk 0:04:49]} 16. Nb5 {[%clk 0:04:18.3]} 16... Rf7 {[%clk
0:04:41.1]} 17. Bb4 {[%clk 0:04:13.4]} 17... Bf8 {[%clk 0:04:32.6]} 18. a4
{[%clk 0:03:59.1]} 18... g4 {[%clk 0:04:23]} 19. Qc2 {[%clk 0:03:54.3]} 19...
gxf3 {[%clk 0:03:37.6]} 20. Bxf3 {[%clk 0:03:51.8]} 20... Ne8 {[%clk 0:03:29.6]}
21. a5 {[%clk 0:03:39.3]} 21... a6 {[%clk 0:03:28.4]} 22. Na3 {[%clk 0:03:33.9]}
22... Nh4 {[%clk 0:03:26.8]} 23. Ne1 {[%clk 0:03:22.7]} 23... Rg7 {[%clk
0:03:25.8]} 24. Kh1 {[%clk 0:03:19.6]} 24... Bd7 {[%clk 0:03:22.7]} 25. Nc4
{[%clk 0:03:15.6]} 25... Bb5 {[%clk 0:03:19.6]} 26. Rg1 {[%clk 0:03:06]} 26...
Rc8 {[%clk 0:03:18.1]} 27. b3 {[%clk 0:03:03.5]} 27... Nf6 {[%clk 0:03:14.3]}
28. Qb1 {[%clk 0:02:56.4]} 28... h5 {[%clk 0:02:58.9]} 29. Nb6 {[%clk
0:02:50.8]} 29... Rxc1 {[%clk 0:02:56.9]} 30. Qxc1 {[%clk 0:02:49]} 30... Ng4
{[%clk 0:02:53.6]} 31. Qd2 {[%clk 0:02:39.1]} 31... Qg5 {[%clk 0:02:46.9]} 32.
h3 {[%clk 0:02:26.5]} 32... Ne3 {[%clk 0:02:43.3]} 33. Qf2 {[%clk 0:02:15.2]}
33... Kh7 {[%clk 0:02:06.9]} 34. Bd2 {[%clk 0:02:07.8]} 34... Qg3 {[%clk
0:01:19.5]} 35. Bxe3 {[%clk 0:02:03.2]} 35... fxe3 {[%clk 0:01:17]} 36. Qxg3
{[%clk 0:02:00.8]} 36... Rxg3 {[%clk 0:01:15.7]} 37. Kh2 {[%clk 0:01:57.3]}
37... Rg7 {[%clk 0:01:10.6]} 38. Bxh5 {[%clk 0:01:51.6]} 38... Kh6 {[%clk
0:01:05.6]} 39. Bg4 {[%clk 0:01:49.5]} 39... Rc7 {[%clk 0:01:03.5]} 40. Kg3
{[%clk 0:01:44.9]} 40... Ng6 {[%clk 0:01:02.3]} 41. Bf5 {[%clk 0:01:40.2]} 41...
Nf4 {[%clk 0:01:01.1]} 42. Kh2 {[%clk 0:01:35.5]} 42... e2 {[%clk 0:00:46.1]}
43. g3 {[%clk 0:01:30.4]} 43... Nd3 {[%clk 0:00:44.1]} 44. Nxd3 {[%clk
0:01:28.1]} 44... Bxd3 {[%clk 0:00:44]} 45. g4 {[%clk 0:01:26.4]} 45... Be7
{[%clk 0:00:41.8]} 46. Nc4 {[%clk 0:01:21.7]} 46... Bxc4 {[%clk 0:00:35.6]} 47.
bxc4 {[%clk 0:01:19.8]} 47... Bh4 {[%clk 0:00:35.5]} 48. g5+ {[%clk 0:01:15.3]}
48... Kg7 {[%clk 0:00:34.6]} 49. Kg2 {[%clk 0:01:11]} 49... e1=Q {[%clk
0:00:33.5]} 50. Rxe1 {[%clk 0:01:09.8]} 50... Bxe1 {[%clk 0:00:33.4]} 51. Kf3
{[%clk 0:01:08.4]} 51... Rxc4 {[%clk 0:00:32]} 52. h4 {[%clk 0:01:06.4]} 52...
Bxh4 {[%clk 0:00:31.1]} 53. Kg4 {[%clk 0:01:05.6]} 53... Be1 {[%clk 0:00:28.8]}
54. Kf3 {[%clk 0:01:00.6]} 54... Bxa5 {[%clk 0:00:27.8]} 55. Ke3 {[%clk
0:00:57]} 55... Bd8 {[%clk 0:00:27.2]} 56. g6 {[%clk 0:00:54.2]} 56... b5 {[%clk
0:00:27.1]} 57. Kd3 {[%clk 0:00:52.9]} 57... a5 {[%clk 0:00:26.3]} 58. Bd7
{[%clk 0:00:49]} 58... Rc5 {[%clk 0:00:25.7]} 59. Be8 {[%clk 0:00:46]} 59... a4
{[%clk 0:00:25]} 60. Bxb5 {[%clk 0:00:41]} 60... Rxb5 {[%clk 0:00:24.1]} 61. Kc4
{[%clk 0:00:40.3]} 61... Rb8 {[%clk 0:00:23.3]} 62. Kc3 {[%clk 0:00:36.3]} 62...
a3 {[%clk 0:00:23.2]} 63. Kc2 {[%clk 0:00:33.6]} 63... a2 {[%clk 0:00:23.1]} 64.
Kd3 {[%clk 0:00:31.1]} 64... a1=Q {[%clk 0:00:22.3]} 65. Ke3 {[%clk 0:00:30.2]}
65... Rb3+ {[%clk 0:00:20.8]} 66. Kf2 {[%clk 0:00:28.5]} 66... Qa2+ {[%clk
0:00:20.2]} 67. Kf1 {[%clk 0:00:26.8]} 67... Rb1# {[%clk 0:00:20.1]} 0-1

[Event "Live Chess"]
[Site "Chess.com"]
[Date "2023.05.21"]
[Round "-"]
[White "Tema1107"]
[Black "MarkLim1"]
[Result "0-1"]
[WhiteElo "1939"]
[BlackElo "1706"]
[TimeControl "300"]
[EndTime "1:16:50 PDT"]
[Termination "MarkLim1 won on time"]

1. d4 {[%clk 0:04:59]} 1... Nf6 {[%clk 0:04:59]} 2. c4 {[%clk 0:04:57.2]} 2...
e6 {[%clk 0:04:58.2]} 3. Nf3 {[%clk 0:04:55.5]} 3... d5 {[%clk 0:04:57.7]} 4.
Bg5 {[%clk 0:04:53.6]} 4... Be7 {[%clk 0:04:54.8]} 5. Nc3 {[%clk 0:04:26.3]}
5... h6 {[%clk 0:04:53.1]} 6. Bh4 {[%clk 0:04:20.3]} 6... O-O {[%clk 0:04:52]}
7. e3 {[%clk 0:04:18.6]} 7... b6 {[%clk 0:04:51.4]} 8. Rc1 {[%clk 0:04:12.8]}
8... Bb7 {[%clk 0:04:50.2]} 9. Bg3 {[%clk 0:04:06.2]} 9... Ne4 {[%clk 0:04:41]}
10. Nxe4 {[%clk 0:03:59.5]} 10... dxe4 {[%clk 0:04:40]} 11. Nd2 {[%clk 0:03:56]}
11... f5 {[%clk 0:04:38.6]} 12. h4 {[%clk 0:03:50.7]} 12... Nd7 {[%clk
0:04:36.8]} 13. a3 {[%clk 0:03:45.5]} 13... c5 {[%clk 0:04:33.2]} 14. h5 {[%clk
0:03:36.3]} 14... cxd4 {[%clk 0:04:30.8]} 15. exd4 {[%clk 0:03:34]} 15... Nf6
{[%clk 0:04:26.9]} 16. Be5 {[%clk 0:03:18]} 16... Ng4 {[%clk 0:04:23.1]} 17. Be2
{[%clk 0:03:02.6]} 17... Nxe5 {[%clk 0:04:20.8]} 18. dxe5 {[%clk 0:03:02.5]}
18... Qd4 {[%clk 0:04:12]} 19. b4 {[%clk 0:02:24.9]} 19... Qxe5 {[%clk
0:04:09.1]} 20. O-O {[%clk 0:02:22.7]} 20... f4 {[%clk 0:04:05.6]} 21. f3 {[%clk
0:02:06.2]} 21... e3 {[%clk 0:03:54.9]} 22. Nb3 {[%clk 0:01:59.7]} 22... Rad8
{[%clk 0:03:48.8]} 23. Qc2 {[%clk 0:01:56]} 23... Qxh5 {[%clk 0:03:46.7]} 24. c5
{[%clk 0:01:51.4]} 24... Rd5 {[%clk 0:03:38.9]} 25. Bc4 {[%clk 0:01:26.8]} 25...
Re5 {[%clk 0:03:24.2]} 26. Rfd1 {[%clk 0:01:01.5]} 26... Bd5 {[%clk 0:03:16.1]}
27. Bxd5 {[%clk 0:00:55.8]} 27... exd5 {[%clk 0:03:14.9]} 28. c6 {[%clk
0:00:54.4]} 28... Qh4 {[%clk 0:03:00.9]} 29. c7 {[%clk 0:00:44.6]} 29... Rh5
{[%clk 0:02:57.8]} 30. Kf1 {[%clk 0:00:39.3]} 30... Qh1+ {[%clk 0:02:55.5]} 31.
Ke2 {[%clk 0:00:37.2]} 31... Qxg2+ {[%clk 0:02:54.3]} 32. Kd3 {[%clk 0:00:35.4]}
32... Qxf3 {[%clk 0:02:46.9]} 33. Nd4 {[%clk 0:00:12.6]} 33... Qe4+ {[%clk
0:02:36.5]} 34. Kc3 {[%clk 0:00:11.9]} 34... Qe5 {[%clk 0:02:06.4]} 35. Kb3
{[%clk 0:00:08.4]} 35... Rc8 {[%clk 0:02:00.4]} 36. Nc6 {[%clk 0:00:08]} 36...
e2 {[%clk 0:01:45.4]} 37. Nxe5 {[%clk 0:00:06.4]} 37... exd1=Q {[%clk
0:01:43.4]} 38. Rxd1 {[%clk 0:00:06.3]} 38... Rxe5 {[%clk 0:01:41.7]} 39. Qc6
{[%clk 0:00:05.5]} 39... Bf6 {[%clk 0:01:32.1]} 40. Qd7 {[%clk 0:00:05]} 40...
Ree8 {[%clk 0:01:30.5]} 41. Qxd5+ {[%clk 0:00:03.3]} 41... Kh7 {[%clk
0:01:29.2]} 42. Rc1 {[%clk 0:00:03]} 42... Re3+ {[%clk 0:01:27.6]} 43. Ka4
{[%clk 0:00:02]} 43... Re7 {[%clk 0:01:26.6]} 44. Qb7 {[%clk 0:00:01.5]} 44...
Ree8 {[%clk 0:01:24.2]} 45. Qxa7 {[%clk 0:00:01]} 45... Ra8 {[%clk 0:01:22.7]}
46. Qxa8 {[%clk 0:00:00.6]} 46... Rxa8+ {[%clk 0:01:21.5]} 47. Kb5 {[%clk
0:00:00.5]} 47... Rc8 {[%clk 0:01:12.6]} 0-1

[Event "Live Chess"]
[Site "Chess.com"]
[Date "2023.05.21"]
[Round "-"]
[White "TheSmoulderingMaster"]
[Black "Dhaydon19"]
[Result "0-1"]
[WhiteElo "1684"]
[BlackElo "2690"]
[TimeControl "300"]
[EndTime "1:16:54 PDT"]
[Termination "Dhaydon19 won by resignation"]

1. e4 {[%clk 0:04:58]} 1... d6 {[%clk 0:04:58.8]} 2. d4 {[%clk 0:04:56.6]} 2...
g6 {[%clk 0:04:57.5]} 3. Nc3 {[%clk 0:04:55.9]} 3... Bg7 {[%clk 0:04:56.9]} 4.
Nf3 {[%clk 0:04:54.4]} 4... Nc6 {[%clk 0:04:56.1]} 5. Bf4 {[%clk 0:04:53.1]}
5... Nf6 {[%clk 0:04:53.3]} 6. Qd2 {[%clk 0:04:52.1]} 6... h5 {[%clk 0:04:49.8]}
7. O-O-O {[%clk 0:04:50.9]} 7... O-O {[%clk 0:04:48]} 8. Bh6 {[%clk 0:04:48.3]}
8... Bg4 {[%clk 0:04:44.1]} 9. Bxg7 {[%clk 0:04:45.9]} 9... Kxg7 {[%clk
0:04:42.9]} 10. Be2 {[%clk 0:04:45.6]} 10... Bxf3 {[%clk 0:04:41.6]} 11. Bxf3
{[%clk 0:04:44.5]} 11... e5 {[%clk 0:04:40.4]} 12. d5 {[%clk 0:04:39.7]} 12...
Nd4 {[%clk 0:04:39.3]} 13. Qe3 {[%clk 0:04:38.4]} 13... c5 {[%clk 0:04:35.7]}
14. dxc6 {[%clk 0:04:36.4]} 14... bxc6 {[%clk 0:04:34.3]} 15. h3 {[%clk
0:04:32.2]} 15... Rb8 {[%clk 0:04:31.3]} 16. g4 {[%clk 0:04:30.1]} 16... Qb6
{[%clk 0:04:28.2]} 17. b3 {[%clk 0:04:27.5]} 17... h4 {[%clk 0:04:22.1]} 18. g5
{[%clk 0:04:20.9]} 18... Nd7 {[%clk 0:04:20.4]} 19. Bg4 {[%clk 0:04:19.2]} 19...
Nc5 {[%clk 0:04:18.2]} 20. f4 {[%clk 0:04:15.7]} 20... Ncxb3+ {[%clk 0:04:14.9]}
21. axb3 {[%clk 0:04:13.8]} 21... Nxb3+ {[%clk 0:04:13.8]} 22. cxb3 {[%clk
0:04:12.9]} 22... Qxe3+ {[%clk 0:04:13.7]} 0-1

[Event "Live Chess"]
[Site "Chess.com"]
[Date "2023.05.21"]
[Round "-"]
[White "Tiltador"]
[Black "mach247"]
[Result "0-1"]
[WhiteElo "758"]
[BlackElo "1327"]
[TimeControl "300"]
[EndTime "1:16:59 PDT"]
[Termination "mach247 won on time"]

1. e4 {[%clk 0:04:54.9]} 1... d5 {[%clk 0:04:59]} 2. exd5 {[%clk 0:04:52.8]}
2... Qxd5 {[%clk 0:04:58.9]} 3. Nf3 {[%clk 0:04:51.6]} 3... Bg4 {[%clk
0:04:57.5]} 4. Be2 {[%clk 0:04:49.1]} 4... Nc6 {[%clk 0:04:56.8]} 5. O-O {[%clk
0:04:47.9]} 5... O-O-O {[%clk 0:04:55.1]} 6. c4 {[%clk 0:04:41.2]} 6... Qd7
{[%clk 0:04:47]} 7. b3 {[%clk 0:04:38.1]} 7... f6 {[%clk 0:04:30.1]} 8. Nc3
{[%clk 0:04:36.8]} 8... Nd4 {[%clk 0:04:19.8]} 9. Nxd4 {[%clk 0:04:25.4]} 9...
Bxe2 {[%clk 0:04:18.1]} 10. Ndxe2 {[%clk 0:04:22]} 10... e5 {[%clk 0:04:17]} 11.
Nd5 {[%clk 0:04:19.4]} 11... c6 {[%clk 0:04:15.2]} 12. Ndc3 {[%clk 0:04:07.9]}
12... Bb4 {[%clk 0:04:12.9]} 13. a3 {[%clk 0:03:51]} 13... Bc5 {[%clk
0:04:00.7]} 14. b4 {[%clk 0:03:41.3]} 14... Bd4 {[%clk 0:03:59.9]} 15. c5 {[%clk
0:03:27]} 15... Ne7 {[%clk 0:03:55.7]} 16. Nxd4 {[%clk 0:03:19.2]} 16... Qxd4
{[%clk 0:03:54.6]} 17. Bb2 {[%clk 0:03:09]} 17... Nf5 {[%clk 0:03:45.4]} 18. Rb1
{[%clk 0:02:59.6]} 18... Qf4 {[%clk 0:03:09.6]} 19. Ne2 {[%clk 0:02:53]} 19...
Qg5 {[%clk 0:03:04.4]} 20. Qa4 {[%clk 0:02:26.5]} 20... Kb8 {[%clk 0:02:51.9]}
21. b5 {[%clk 0:02:21.5]} 21... cxb5 {[%clk 0:02:41]} 22. Qxb5 {[%clk
0:02:13.8]} 22... Qxd2 {[%clk 0:01:36.1]} 23. c6 {[%clk 0:02:07.6]} 23... b6
{[%clk 0:01:26.5]} 24. Qc4 {[%clk 0:01:45.9]} 24... Kc7 {[%clk 0:01:03.1]} 25.
g3 {[%clk 0:00:48.4]} 25... Rd6 {[%clk 0:00:30.5]} 26. Rfd1 {[%clk 0:00:33.5]}
26... Qa5 {[%clk 0:00:29.2]} 27. Rxd6 {[%clk 0:00:29.3]} 27... Nxd6 {[%clk
0:00:29.1]} 28. Qc3 {[%clk 0:00:20.5]} 28... Qd5 {[%clk 0:00:22.2]} 29. Rf1
{[%clk 0:00:11.1]} 29... Nb5 {[%clk 0:00:19.2]} 30. Qe3 {[%clk 0:00:05.2]} 30...
Rd8 {[%clk 0:00:15.7]} 0-1